[Event "Schack-SM 2024: Mastarklassen"]
[Site "Fortnox Arena, Hejaregatan 5, Vaxjo, Sweden"]
[Date "2024.06.30"]
[Round "2.11"]
[White "Landgren, Andreas"]
[Black "Willstedt, Lukas"]
[Result "1/2-1/2"]
[TimeControl "90 minutes for 40 moves + 30 minutes for the rest of the game + 30 seconds per move from move one."]
[WhiteTitle "FM"]
[WhiteElo "2243"]
[BlackElo "2082"]

1. d4 {[%clk 01:30:58]} d5 {[%clk 01:30:25]} {[%emt 00:00:36]} 2. c4 {[%clk
01:31:15]} {[%emt 00:00:13]} dxc4 {[%clk 01:30:50]} {[%emt 00:00:05]} 3. e3
{[%clk 01:30:57]} {[%emt 00:00:49]} e5 {[%clk 01:31:14]} {[%emt 00:00:06]} 4.
Bxc4 {[%clk 01:31:18]} {[%emt 00:00:09]} exd4 {[%clk 01:31:39]} {[%emt
00:00:05]} 5. exd4 {[%clk 01:31:25]} {[%emt 00:00:23]} Nf6 {[%clk 01:31:56]}
{[%emt 00:00:12]} 6. Nf3 {[%clk 01:29:27]} {[%emt 00:02:29]} Bd6 {[%clk
01:32:15]} {[%emt 00:00:11]} 7. Qe2+ {[%clk 01:28:42]} {[%emt 00:01:14]} Qe7
{[%clk 01:32:37]} {[%emt 00:00:09]} 8. Qxe7+ {[%clk 01:29:01]} {[%emt
00:00:10]} Bxe7 {[%clk 01:33:01]} {[%emt 00:00:06]} 9. O-O {[%clk 01:28:17]}
{[%emt 00:01:14]} O-O {[%clk 01:32:16]} {[%emt 00:01:15]} 10. Nc3 {[%clk
01:26:44]} {[%emt 00:02:04]} c6 {[%clk 01:27:33]} {[%emt 00:05:13]} 11. Re1
{[%clk 01:20:40]} {[%emt 00:06:33]} Bd6 {[%clk 01:27:30]} {[%emt 00:00:33]} 12.
Bg5 {[%clk 01:19:49]} {[%emt 00:01:21]} Nbd7 {[%clk 01:27:18]} {[%emt
00:00:42]} 13. Bb3 {[%clk 01:19:01]} {[%emt 00:01:19]} h6 {[%clk 01:27:24]}
{[%emt 00:00:24]} 14. Bh4 {[%clk 01:18:59]} {[%emt 00:00:31]} Re8 {[%clk
01:16:51]} {[%emt 00:11:03]} 15. Rxe8+ {[%clk 01:10:29]} {[%emt 00:09:00]} Nxe8
{[%clk 01:16:04]} {[%emt 00:01:17]} 16. Re1 {[%clk 01:08:30]} {[%emt 00:02:29]}
Kf8 {[%clk 01:13:46]} {[%emt 00:02:48]} 17. a3 {[%clk 00:56:21]} {[%emt
00:12:40]} g5 {[%clk 01:03:21]} {[%emt 00:10:54]} 18. Bg3 {[%clk 00:55:54]}
{[%emt 00:00:58]} Bxg3 {[%clk 01:03:45]} {[%emt 00:00:06]} 19. fxg3 {[%clk
00:54:16]} {[%emt 00:02:07]} Nb6 {[%clk 01:03:32]} {[%emt 00:00:43]} 20. h4
{[%clk 00:35:22]} {[%emt 00:19:24]} f6 {[%clk 01:01:38]} {[%emt 00:02:24]} 21.
Rf1 {[%clk 00:22:14]} {[%emt 00:13:38]} Ke7 {[%clk 01:00:04]} {[%emt 00:02:03]}
22. Re1+ {[%clk 00:19:27]} {[%emt 00:03:18]} Kf8 {[%clk 00:57:52]} {[%emt
00:02:42]} 23. Rf1 {[%clk 00:17:15]} {[%emt 00:02:42]} Ke7 {[%clk 00:58:14]}
{[%emt 00:00:08]} 24. Re1+ {[%clk 00:15:01]} {[%emt 00:02:44]} Kf8 {[%clk
00:58:29]} {[%emt 00:00:14]} 1/2-1/2

[Event "Schack-SM 2024: Mastarklassen"]
[Site "Fortnox Arena, Hejaregatan 5, Vaxjo, Sweden"]
[Date "2024.06.30"]
[Round "2.12"]
[White "Dingertz, Erik"]
[Black "Muntean, Victor"]
[Result "0-1"]
[TimeControl "90 minutes for 40 moves + 30 minutes for the rest of the game + 30 seconds per move from move one."]
[WhiteElo "2081"]
[BlackElo "2136"]

1. d4 {[%clk 01:30:56]} {[%emt 00:00:03]} f5 {[%clk 01:30:48]} {[%emt
00:00:12]} 2. c4 {[%clk 01:30:31]} {[%emt 00:00:55]} Nf6 {[%clk 01:30:39]}
{[%emt 00:00:40]} 3. Nc3 {[%clk 01:30:47]} {[%emt 00:00:13]} g6 {[%clk
01:30:43]} {[%emt 00:00:27]} 4. Nf3 {[%clk 01:30:16]} {[%emt 00:01:00]} Bg7
{[%clk 01:30:45]} {[%emt 00:00:29]} 5. g3 {[%clk 01:27:32]} {[%emt 00:03:13]}
d6 {[%clk 01:30:11]} {[%emt 00:01:04]} 6. Bg2 {[%clk 01:27:49]} {[%emt
00:00:12]} c6 {[%clk 01:29:48]} {[%emt 00:00:55]} 7. O-O {[%clk 01:26:43]}
{[%emt 00:01:36]} O-O {[%clk 01:30:07]} {[%emt 00:00:10]} 8. Qb3 {[%clk
01:18:35]} {[%emt 00:08:38]} Qc7 {[%clk 01:28:40]} {[%emt 00:01:57]} 9. Bf4
{[%clk 01:13:22]} {[%emt 00:05:43]} h6 {[%clk 01:22:18]} {[%emt 00:06:53]} 10.
c5+ {[%clk 01:03:33]} {[%emt 00:10:18]} Kh7 {[%clk 01:20:37]} {[%emt 00:02:11]}
11. cxd6 {[%clk 01:03:53]} {[%emt 00:00:10]} exd6 {[%clk 01:20:44]} {[%emt
00:00:24]} 12. Rac1 {[%clk 01:00:40]} {[%emt 00:03:42]} Qe7 {[%clk 01:16:45]}
{[%emt 00:04:28]} 13. d5 {[%clk 00:58:30]} {[%emt 00:02:42]} c5 {[%clk
01:12:35]} {[%emt 00:04:40]} 14. e4 {[%clk 00:42:55]} {[%emt 00:16:05]} Nh5
{[%clk 01:02:20]} {[%emt 00:10:44]} 15. Bxd6 {[%clk 00:36:13]} {[%emt
00:07:13]} Qxd6 {[%clk 00:59:09]} {[%emt 00:03:41]} 16. e5 {[%clk 00:36:37]}
{[%emt 00:00:06]} Qb6 {[%clk 00:51:31]} {[%emt 00:08:07]} 17. Qc4 {[%clk
00:35:11]} {[%emt 00:01:56]} Bd7 {[%clk 00:45:43]} {[%emt 00:06:18]} 18. Rfd1
{[%clk 00:29:39]} {[%emt 00:06:02]} Qb4 {[%clk 00:39:53]} {[%emt 00:06:20]} 19.
Qxb4 {[%clk 00:22:16]} {[%emt 00:07:54]} cxb4 {[%clk 00:40:02]} {[%emt
00:00:21]} 20. Ne2 {[%clk 00:22:42]} {[%emt 00:00:03]} Re8 {[%clk 00:34:38]}
{[%emt 00:05:55]} 21. e6 {[%clk 00:21:41]} {[%emt 00:01:30]} Bxe6 {[%clk
00:31:48]} {[%emt 00:03:20]} 22. dxe6 {[%clk 00:22:06]} {[%emt 00:00:05]} Rxe6
{[%clk 00:31:51]} {[%emt 00:00:27]} 23. Nfd4 {[%clk 00:21:52]} {[%emt
00:00:44]} Re7 {[%clk 00:24:13]} {[%emt 00:08:08]} 24. Rc8 {[%clk 00:22:12]}
{[%emt 00:00:10]} a6 {[%clk 00:23:34]} {[%emt 00:01:10]} 25. Rdc1 {[%clk
00:14:32]} {[%emt 00:08:09]} Be5 {[%clk 00:21:43]} {[%emt 00:02:21]} 26. f4
{[%clk 00:14:22]} {[%emt 00:00:40]} Bd6 {[%clk 00:21:44]} {[%emt 00:00:29]} 27.
Rd8 {[%clk 00:14:25]} {[%emt 00:00:27]} Bc7 {[%clk 00:22:07]} {[%emt 00:00:07]}
28. Rc8 {[%clk 00:12:05]} {[%emt 00:02:51]} Bd6 {[%clk 00:22:22]} {[%emt
00:00:14]} 29. Bd5 {[%clk 00:09:49]} {[%emt 00:02:46]} Nf6 {[%clk 00:20:14]}
{[%emt 00:02:38]} 30. Bb3 {[%clk 00:10:07]} {[%emt 00:00:10]} b6 {[%clk
00:07:29]} {[%emt 00:13:18]} 31. Ne6 {[%clk 00:06:43]} {[%emt 00:03:53]} Raa7
{[%clk 00:05:13]} {[%emt 00:02:46]} 32. N2d4 {[%clk 00:06:48]} {[%emt
00:00:25]} Nbd7 {[%clk 00:05:03]} {[%emt 00:00:42]} 33. Nc6 {[%clk 00:06:42]}
{[%emt 00:00:32]} Nc5 {[%clk 00:04:31]} {[%emt 00:01:04]} 34. Nxa7 {[%clk
00:05:27]} {[%emt 00:01:45]} Nxb3 {[%clk 00:04:36]} {[%emt 00:00:25]} 35. axb3
{[%clk 00:05:00]} {[%emt 00:00:57]} Rxe6 {[%clk 00:04:55]} {[%emt 00:00:12]} 36.
R8c6 {[%clk 00:04:37]} {[%emt 00:00:52]} Ne4 {[%clk 00:04:44]} {[%emt
00:00:41]} 37. Kg2 {[%clk 00:03:51]} {[%emt 00:01:15]} Nd2 {[%clk 00:04:19]}
{[%emt 00:00:56]} 38. Nc8 {[%clk 00:00:34]} {[%emt 00:03:47]} Re2+ {[%clk
00:04:03]} {[%emt 00:00:46]} 39. Kh3 {[%clk 00:00:46]} {[%emt 00:00:18]} g5
{[%clk 00:02:29]} {[%emt 00:02:05]} 40. fxg5 {[%clk 00:00:37]} {[%emt
00:00:38]} hxg5 {[%clk 00:02:50]} {[%emt 00:00:09]} 41. Rh1 {[%clk 00:25:14]}
{[%emt 00:05:52]} Nf3 {[%clk 00:32:46]} {[%emt 00:00:35]} 0-1

[Event "Schack-SM 2024: Mastarklassen"]
[Site "Fortnox Arena, Hejaregatan 5, Vaxjo, Sweden"]
[Date "2024.06.30"]
[Round "2.13"]
[White "Ask, Josef"]
[Black "Karlsson, Stefan 2005"]
[Result "0-1"]
[TimeControl "90 minutes for 40 moves + 30 minutes for the rest of the game + 30 seconds per move from move one."]
[WhiteTitle "FM"]
[WhiteElo "2136"]
[BlackElo "2072"]

1. Nf3 {[%clk 01:30:55]} {[%emt 00:00:03]} Nf6 {[%clk 01:30:50]} {[%emt
00:00:10]} 2. g3 {[%clk 01:30:43]} {[%emt 00:00:43]} g6 {[%clk 01:31:14]}
{[%emt 00:00:04]} 3. Bg2 {[%clk 01:30:59]} {[%emt 00:00:16]} Bg7 {[%clk
01:31:39]} {[%emt 00:00:04]} 4. c4 {[%clk 01:30:52]} {[%emt 00:00:38]} O-O
{[%clk 01:32:01]} {[%emt 00:00:07]} 5. Nc3 {[%clk 01:30:51]} {[%emt 00:00:32]}
c5 {[%clk 01:30:54]} {[%emt 00:01:37]} 6. O-O {[%clk 01:29:34]} {[%emt
00:01:47]} Nc6 {[%clk 01:30:42]} {[%emt 00:00:42]} 7. d3 {[%clk 01:28:57]}
{[%emt 00:01:08]} d5 {[%clk 01:31:05]} {[%emt 00:00:07]} 8. Bg5 {[%clk
01:22:27]} {[%emt 00:06:59]} dxc4 {[%clk 01:19:29]} {[%emt 00:12:06]} 9. dxc4
{[%clk 01:21:17]} {[%emt 00:01:41]} Be6 {[%clk 01:19:13]} {[%emt 00:00:43]} 10.
Qa4 {[%clk 01:15:14]} {[%emt 00:06:35]} Nd7 {[%clk 01:05:46]} {[%emt 00:13:57]}
11. Rfd1 {[%clk 01:09:59]} {[%emt 00:05:45]} h6 {[%clk 01:02:17]} {[%emt
00:03:58]} 12. Bf4 {[%clk 01:06:52]} {[%emt 00:03:38]} g5 {[%clk 00:55:02]}
{[%emt 00:07:43]} 13. Be3 {[%clk 01:06:17]} {[%emt 00:01:06]} Bxc3 {[%clk
00:40:00]} {[%emt 00:15:32]} 14. bxc3 {[%clk 01:06:31]} {[%emt 00:00:17]} Qc7
{[%clk 00:37:23]} {[%emt 00:03:07]} 15. h4 {[%clk 01:03:28]} {[%emt 00:03:33]}
f6 {[%clk 00:37:15]} {[%emt 00:00:37]} 16. Qc2 {[%clk 01:02:20]} {[%emt
00:01:39]} Kg7 {[%clk 00:34:24]} {[%emt 00:03:20]} 17. Rab1 {[%clk 00:56:34]}
{[%emt 00:06:17]} Rab8 {[%clk 00:30:28]} {[%emt 00:04:26]} 18. Qe4 {[%clk
00:54:01]} {[%emt 00:03:03]} Nce5 {[%clk 00:27:17]} {[%emt 00:03:40]} 19. hxg5
{[%clk 00:48:57]} {[%emt 00:05:34]} fxg5 {[%clk 00:20:30]} {[%emt 00:07:17]} 20.
Bxg5 {[%clk 00:22:53]} {[%emt 00:26:34]} hxg5 {[%clk 00:19:11]} {[%emt
00:01:49]} 21. Nxg5 {[%clk 00:22:51]} {[%emt 00:00:33]} Bf5 {[%clk 00:19:14]}
{[%emt 00:00:26]} 22. Qf4 {[%clk 00:21:19]} {[%emt 00:02:03]} Rf6 {[%clk
00:17:09]} {[%emt 00:02:34]} 23. Qxf5 {[%clk 00:18:35]} {[%emt 00:03:15]} Rxf5
{[%clk 00:17:14]} {[%emt 00:00:25]} 24. Ne6+ {[%clk 00:19:01]} {[%emt
00:00:04]} Kf7 {[%clk 00:16:33]} {[%emt 00:01:11]} 25. Nxc7 {[%clk 00:19:26]}
{[%emt 00:00:05]} Nb6 {[%clk 00:16:27]} {[%emt 00:00:35]} 26. Be4 {[%clk
00:18:26]} {[%emt 00:01:30]} Rh5 {[%clk 00:16:01]} {[%emt 00:00:56]} 27. Nd5
{[%clk 00:18:16]} {[%emt 00:00:40]} Nexc4 {[%clk 00:13:42]} {[%emt 00:02:49]}
28. Nf4 {[%clk 00:17:11]} {[%emt 00:01:37]} Rh6 {[%clk 00:12:22]} {[%emt
00:01:49]} 29. Rb5 {[%clk 00:16:38]} {[%emt 00:01:02]} Nd6 {[%clk 00:11:41]}
{[%emt 00:01:11]} 30. Rxb6 {[%clk 00:14:47]} {[%emt 00:02:22]} axb6 {[%clk
00:11:52]} {[%emt 00:00:19]} 31. Bd5+ {[%clk 00:15:11]} {[%emt 00:00:05]} e6
{[%clk 00:09:59]} {[%emt 00:02:23]} 32. Bf3 {[%clk 00:14:45]} {[%emt 00:00:56]}
Ke7 {[%clk 00:10:13]} {[%emt 00:00:15]} 33. Rb1 {[%clk 00:10:59]} {[%emt
00:04:17]} Nc4 {[%clk 00:09:42]} {[%emt 00:01:01]} 34. Bg2 {[%clk 00:09:38]}
{[%emt 00:01:52]} Ra8 {[%clk 00:09:33]} {[%emt 00:00:39]} 35. Bxb7 {[%clk
00:08:41]} {[%emt 00:01:27]} Rxa2 {[%clk 00:09:41]} {[%emt 00:00:21]} 36. Bg2
{[%clk 00:07:49]} {[%emt 00:01:22]} Rc2 {[%clk 00:08:40]} {[%emt 00:01:23]} 37.
Ra1 {[%clk 00:06:18]} {[%emt 00:02:10]} Rxc3 {[%clk 00:06:39]} {[%emt
00:02:30]} 38. Be4 {[%emt 00:03:07]} Nd2 {[%clk 00:04:54]} {[%emt 00:00:01]} 39.
Bc6 {[%clk 00:04:45]} {[%emt 00:01:40]} Kd6 {[%clk 00:04:52]} {[%emt 00:00:33]}
40. Be8 {[%clk 00:03:26]} {[%emt 00:01:49]} Ne4 {[%clk 00:02:35]} {[%emt
00:02:45]} 41. Ra7 {[%clk 00:01:55]} {[%emt 00:02:02]} Nf6 {[%clk 00:01:52]}
{[%emt 00:01:13]} 42. Bb5 {[%clk 00:01:02]} {[%emt 00:01:24]} Rb3 {[%clk
00:01:01]} {[%emt 00:01:19]} 43. Bc4 {[%clk 00:29:17]} {[%emt 00:02:16]} Rb4
{[%clk 00:31:08]} {[%emt 00:00:24]} 44. Bd3 {[%clk 00:23:25]} {[%emt 00:06:22]}
c4 {[%clk 00:28:00]} {[%emt 00:03:37]} 45. Bg6 {[%clk 00:21:13]} {[%emt
00:02:43]} e5 {[%clk 00:26:49]} {[%emt 00:01:39]} 46. Rf7 {[%clk 00:21:21]}
{[%emt 00:00:23]} Ng8 {[%clk 00:22:38]} {[%emt 00:04:42]} 47. Rf8 {[%clk
00:18:17]} {[%emt 00:03:34]} exf4 {[%clk 00:16:48]} {[%emt 00:06:19]} 48. Rxg8
{[%clk 00:18:34]} {[%emt 00:00:14]} fxg3 {[%clk 00:13:35]} {[%emt 00:03:43]} 49.
fxg3 {[%clk 00:18:46]} {[%emt 00:00:17]} Rb2 {[%clk 00:10:43]} {[%emt
00:03:20]} 50. Bf5 {[%clk 00:13:34]} {[%emt 00:05:44]} Rxe2 {[%clk 00:09:23]}
{[%emt 00:01:50]} 51. g4 {[%clk 00:12:52]} {[%emt 00:01:12]} Rh3 {[%clk
00:07:53]} {[%emt 00:01:59]} 52. g5 {[%clk 00:07:35]} {[%emt 00:05:49]} Ra3
{[%clk 00:06:51]} {[%emt 00:01:30]} 53. Kf1 {[%clk 00:07:21]} {[%emt 00:00:45]}
Rb2 {[%clk 00:07:10]} {[%emt 00:00:11]} 54. Re8 {[%clk 00:06:43]} {[%emt
00:01:09]} Rf3+ {[%clk 00:07:07]} {[%emt 00:00:32]} 0-1

[Event "Schack-SM 2024: Mastarklassen"]
[Site "Fortnox Arena, Hejaregatan 5, Vaxjo, Sweden"]
[Date "2024.06.30"]
[Round "2.14"]
[White "Carlstrom, Niklas"]
[Black "Joensson, Oscar"]
[Result "1/2-1/2"]
[TimeControl "90 minutes for 40 moves + 30 minutes for the rest of the game + 30 seconds per move from move one."]
[WhiteElo "2100"]
[BlackElo "1989"]

1. e4 {[%clk 01:30:45]} {[%emt 00:00:15]} c6 {[%clk 01:30:56]} {[%emt
00:00:06]} 2. Nc3 {[%clk 01:31:04]} {[%emt 00:00:09]} d5 {[%clk 01:31:21]}
{[%emt 00:00:05]} 3. Nf3 {[%clk 01:31:26]} {[%emt 00:00:07]} dxe4 {[%clk
01:31:21]} {[%emt 00:00:31]} 4. Nxe4 {[%clk 01:31:45]} {[%emt 00:00:10]} Nf6
{[%clk 01:31:47]} {[%emt 00:00:05]} 5. Qe2 {[%clk 01:31:55]} {[%emt 00:00:20]}
Nxe4 {[%clk 01:32:03]} {[%emt 00:00:15]} 6. Qxe4 {[%clk 01:32:17]} {[%emt
00:00:07]} Nd7 {[%clk 01:32:29]} {[%emt 00:00:05]} 7. Bc4 {[%clk 01:32:29]}
{[%emt 00:00:17]} Nf6 {[%clk 01:32:53]} {[%emt 00:00:06]} 8. Ne5 {[%clk
01:32:39]} {[%emt 00:00:20]} e6 {[%clk 01:33:18]} {[%emt 00:00:06]} 9. Qe2
{[%clk 01:32:58]} {[%emt 00:00:09]} b5 {[%clk 01:33:36]} {[%emt 00:00:14]} 10.
Bd3 {[%clk 01:33:16]} {[%emt 00:00:11]} Qc7 {[%clk 01:30:24]} {[%emt 00:03:43]}
11. a4 {[%clk 01:33:25]} {[%emt 00:00:20]} b4 {[%clk 01:04:26]} {[%emt
00:26:29]} 12. b3 {[%clk 01:32:11]} {[%emt 00:01:44]} Nd5 {[%clk 00:58:28]}
{[%emt 00:06:27]} 13. g3 {[%clk 01:30:35]} {[%emt 00:02:06]} Be7 {[%emt
00:08:24]} 14. Bb2 {[%clk 01:24:33]} {[%emt 00:00:49]} Bf6 {[%clk 00:55:49]}
{[%emt 00:00:59]} 15. O-O-O {[%clk 01:21:38]} {[%emt 00:03:25]} Bb7 {[%clk
00:50:20]} {[%emt 00:05:59]} 16. f4 {[%clk 01:19:35]} {[%emt 00:02:32]} O-O-O
{[%clk 00:45:36]} {[%emt 00:05:15]} 17. Ba6 {[%clk 01:16:05]} {[%emt 00:03:59]}
Kb8 {[%clk 00:42:08]} {[%emt 00:03:59]} 18. Bxb7 {[%clk 01:13:21]} {[%emt
00:03:14]} Kxb7 {[%clk 00:41:17]} {[%emt 00:01:21]} 19. Qe4 {[%clk 01:07:38]}
{[%emt 00:06:12]} h5 {[%clk 00:37:47]} {[%emt 00:04:00]} 20. h3 {[%clk
01:00:55]} {[%emt 00:07:13]} g6 {[%clk 00:33:23]} {[%emt 00:04:55]} 21. g4
{[%clk 00:53:02]} {[%emt 00:08:20]} hxg4 {[%clk 00:31:35]} {[%emt 00:02:20]} 22.
hxg4 {[%clk 00:53:20]} {[%emt 00:00:12]} Rxh1 {[%clk 00:31:41]} {[%emt
00:00:25]} 23. Rxh1 {[%clk 00:53:38]} {[%emt 00:00:11]} Rh8 {[%clk 00:31:36]}
{[%emt 00:00:35]} 24. Rxh8 {[%clk 00:48:03]} {[%emt 00:06:06]} Bxh8 {[%clk
00:31:39]} {[%emt 00:00:27]} 25. f5 {[%clk 00:46:16]} {[%emt 00:02:17]} exf5
{[%clk 00:26:23]} {[%emt 00:05:46]} 26. gxf5 {[%clk 00:46:26]} {[%emt
00:00:19]} g5 {[%clk 00:26:38]} {[%emt 00:00:14]} 27. Nd3 {[%clk 00:41:48]}
{[%emt 00:05:08]} Bxb2+ {[%clk 00:26:06]} {[%emt 00:01:03]} 28. Kxb2 {[%clk
00:41:59]} {[%emt 00:00:18]} Qe7 {[%clk 00:26:04]} {[%emt 00:00:33]} 29. Qc4
{[%clk 00:27:50]} {[%emt 00:14:39]} Qf6+ {[%clk 00:24:58]} {[%emt 00:01:37]} 30.
Kb1 {[%clk 00:27:55]} {[%emt 00:00:24]} Qxf5 {[%clk 00:24:21]} {[%emt
00:01:08]} 31. Nc5+ {[%clk 00:27:24]} {[%emt 00:01:00]} Kc7 {[%clk 00:22:50]}
{[%emt 00:02:02]} 32. Na6+ {[%clk 00:25:12]} {[%emt 00:02:41]} Kb7 {[%clk
00:16:28]} {[%emt 00:06:53]} 33. Nc5+ {[%clk 00:25:17]} {[%emt 00:00:24]} Kc7
{[%clk 00:12:09]} {[%emt 00:04:50]} 34. Na6+ {[%clk 00:25:37]} {[%emt
00:00:10]} Kd7 {[%clk 00:04:57]} {[%emt 00:07:42]} 35. Nb8+ {[%clk 00:25:15]}
{[%emt 00:00:51]} Kc7 {[%clk 00:04:07]} {[%emt 00:01:21]} 1/2-1/2

[Event "Schack-SM 2024: Mastarklassen"]
[Site "Fortnox Arena, Hejaregatan 5, Vaxjo, Sweden"]
[Date "2024.06.30"]
[Round "2.1"]
[White "Joensson, Jacob"]
[Black "Walinder, Lars"]
[Result "0-1"]
[TimeControl "90 minutes for 40 moves + 30 minutes for the rest of the game + 30 seconds per move from move one."]
[BlackTitle "FM"]
[WhiteElo "2068"]
[BlackElo "2233"]

1. d4 {[%clk 01:30:58]} {[%emt 00:00:02]} Nf6 {[%clk 01:30:19]} {[%emt
00:00:41]} 2. c4 {[%clk 01:31:24]} {[%emt 00:00:06]} e6 {[%clk 01:30:30]}
{[%emt 00:00:19]} 3. Bf4 {[%clk 01:31:49]} {[%emt 00:00:05]} d5 {[%clk
01:27:29]} {[%emt 00:03:31]} 4. cxd5 {[%clk 01:32:15]} {[%emt 00:00:06]} exd5
{[%clk 01:27:37]} {[%emt 00:00:21]} 5. e3 {[%clk 01:32:35]} {[%emt 00:00:11]}
Bd6 {[%clk 01:23:55]} {[%emt 00:04:12]} 6. Bxd6 {[%clk 01:32:58]} {[%emt
00:00:06]} Qxd6 {[%clk 01:24:14]} {[%emt 00:00:11]} 7. Nc3 {[%clk 01:33:19]}
{[%emt 00:00:09]} Bf5 {[%clk 01:08:44]} {[%emt 00:15:59]} 8. Qb3 {[%clk
01:30:55]} {[%emt 00:02:56]} O-O {[%clk 00:59:25]} {[%emt 00:09:48]} 9. Nf3
{[%clk 01:18:30]} {[%emt 00:12:55]} Nbd7 {[%clk 00:53:29]} {[%emt 00:06:26]} 10.
Be2 {[%clk 01:15:13]} {[%emt 00:03:46]} c6 {[%clk 00:51:41]} {[%emt 00:02:18]}
11. O-O {[%clk 01:11:07]} {[%emt 00:04:36]} Rab8 {[%clk 00:51:22]} {[%emt
00:00:49]} 12. Rac1 {[%clk 01:03:40]} {[%emt 00:07:56]} h6 {[%clk 00:43:59]}
{[%emt 00:07:53]} 13. Qa4 {[%clk 00:44:46]} {[%emt 00:19:25]} a6 {[%clk
00:41:36]} {[%emt 00:02:53]} 14. Rfe1 {[%clk 00:44:29]} {[%emt 00:00:45]} Rfe8
{[%clk 00:40:30]} {[%emt 00:01:36]} 15. Nd2 {[%clk 00:44:26]} {[%emt 00:00:34]}
h5 {[%clk 00:27:06]} {[%emt 00:13:54]} 16. Bf3 {[%clk 00:40:06]} {[%emt
00:04:49]} Ng4 {[%clk 00:15:16]} {[%emt 00:12:20]} 17. Nf1 {[%clk 00:35:25]}
{[%emt 00:05:12]} h4 {[%clk 00:14:23]} {[%emt 00:01:23]} 18. h3 {[%clk
00:21:43]} {[%emt 00:14:12]} Ngf6 {[%clk 00:14:43]} {[%emt 00:00:10]} 19. Nd2
{[%clk 00:21:53]} {[%emt 00:00:19]} Re7 {[%clk 00:13:06]} {[%emt 00:02:09]} 20.
Qa5 {[%clk 00:21:02]} {[%emt 00:01:20]} Rbe8 {[%clk 00:10:46]} {[%emt
00:02:49]} 21. b4 {[%clk 00:20:16]} {[%emt 00:01:16]} g5 {[%clk 00:09:38]}
{[%emt 00:01:39]} 22. e4 {[%clk 00:19:04]} {[%emt 00:01:42]} b6 {[%clk
00:07:45]} {[%emt 00:02:24]} 23. Qxa6 {[%clk 00:16:37]} {[%emt 00:02:57]} dxe4
{[%clk 00:07:12]} {[%emt 00:01:02]} 24. Be2 {[%clk 00:16:32]} {[%emt 00:00:36]}
e3 {[%clk 00:05:08]} {[%emt 00:02:34]} 25. fxe3 {[%clk 00:16:20]} {[%emt
00:00:42]} Rxe3 {[%clk 00:02:13]} {[%emt 00:03:24]} 26. Nc4 {[%clk 00:15:37]}
{[%emt 00:01:13]} Qxd4 {[%clk 00:02:40]} {[%emt 00:00:02]} 27. Nxe3 {[%clk
00:15:36]} {[%emt 00:00:32]} Qxe3+ {[%clk 00:03:03]} {[%emt 00:00:08]} 28. Kh1
{[%clk 00:15:28]} {[%emt 00:00:37]} Qg3 {[%clk 00:02:29]} {[%emt 00:01:04]} 29.
Rf1 {[%clk 00:08:23]} {[%emt 00:07:35]} Bxh3 {[%clk 00:02:25]} {[%emt
00:00:34]} 30. Bf3 {[%clk 00:08:36]} {[%emt 00:00:16]} Ng4 {[%clk 00:02:01]}
{[%emt 00:00:53]} 0-1